fUST/lending_fUST_20251214
["ID","MTS","AMOUNT","RATE_DAILY","PERIOD"]
[398432336,1765647051252,-550.33,0.00024931,3]
[398432337,1765647051261,-516.66,0.00024931,3]
[398432338,1765647051270,-681.24,0.00024931,3]
[398432339,1765647051279,-500.0,0.00024931,3]
[398432340,1765647051288,-1297.81,0.00024931,3]
[398432341,1765647051298,-500.0,0.00024931,3]
[398432342,1765647051308,-591.45,0.00024931,3]
[398432343,1765647051318,-1357.77,0.00024931,3]
[398432344,1765647051327,-500.0,0.00024931,3]
[398432345,1765647051336,-500.0,0.00024931,3]
[398432346,1765647051346,-639.01,0.00024931,3]
[398432347,1765647051355,-500.0,0.00024931,3]
[398432348,1765647051365,-1029.38,0.00024931,3]
[398432349,1765647051374,-1440.89,0.00024931,3]
[398432350,1765647051383,-1195.68,0.00024931,3]
[398432351,1765647051392,-935.22,0.00024931,3]
[398432352,1765647051402,-1000.0,0.00024931,2]
[398432353,1765647051411,-500.0,0.00024931,3]
[398432354,1765647051420,-723.77,0.00024931,3]
[398432355,1765647051429,-500.0,0.00024931,3]
[398432356,1765647051439,-503.06869595,0.00024931,3]
[398432357,1765647051448,-500.0,0.00024931,3]
[398432358,1765647051459,-500.0,0.00024931,3]
[398432359,1765647051469,-500.0,0.00024931,3]
[398432360,1765647051477,-500.0,0.00024931,3]
[398432361,1765647051486,-1276.89,0.00024931,3]
[398432362,1765647051495,-956.56,0.00024931,3]
[398432363,1765647051504,-500.0,0.00024931,3]
[398432364,1765647051513,-1167.19,0.00024931,3]
[398432365,1765647051523,-500.0,0.00024931,3]
[398432366,1765647051532,-500.0,0.00024931,3]
[398432367,1765647051541,-500.0,0.00024931,3]
[398432368,1765647051551,-500.0,0.00024931,3]
[398432369,1765647051560,-500.0,0.00024931,3]
[398432370,1765647051569,-500.0,0.00024931,3]
[398432371,1765647051578,-500.0,0.00024931,3]
[398432372,1765647051588,-500.0,0.00024931,3]
[398432373,1765647051597,-500.0,0.00024931,3]
[398432374,1765647051607,-500.0,0.00024931,3]
[398432375,1765647051616,-500.0,0.00024931,3]
[398432376,1765647051626,-1252.48,0.00024931,3]
[398432377,1765647051635,-500.0,0.00024931,3]
[398432378,1765647051644,-500.0,0.00024931,3]
[398432379,1765647051654,-1057.25,0.00024931,3]
[398432380,1765647051663,-500.0,0.00024931,3]
[398432381,1765647051673,-500.0,0.00024931,3]
[398432382,1765647051682,-523.08,0.00024931,3]
[398432383,1765647051692,-500.0,0.00024931,3]
[398432384,1765647051702,-682.28,0.00024931,3]
[398432385,1765647051711,-500.0,0.00024931,3]
[398432386,1765647051721,-861.77,0.00024931,3]
[398432387,1765647051730,-500.0,0.00024931,3]
[398432388,1765647051739,-796.16,0.00024931,3]
[398432389,1765647051749,-1568.62,0.00024931,3]
[398432390,1765647051758,-1244.57,0.00024931,3]
[398432391,1765647051768,-500.0,0.00024931,3]
[398432392,1765647051778,-978.19,0.00024931,3]
[398432393,1765647051788,-1506.56,0.00024931,3]
[398432394,1765647051797,-1097.63,0.00024931,3]
[398432395,1765647051807,-407.47885462,0.00024931,3]
[398432396,1765647051816,-500.0,0.00024931,3]
[398432397,1765647051825,-500.0,0.00024931,3]
[398432398,1765647051835,-500.0,0.00024931,3]
[398432399,1765647051844,-500.0,0.00024931,3]
[398432400,1765647051853,-1136.06,0.00024931,3]
[398432401,1765647051862,-500.0,0.00024931,3]
[398432402,1765647051871,-500.0,0.00024931,3]
[398432403,1765647051881,-974.63,0.00024931,3]
[398432404,1765647051891,-500.0,0.00024931,3]
[398432405,1765647051900,-955.02,0.00024931,3]
[398432406,1765647051909,-596.67,0.00024931,3]
[398432407,1765647051918,-1646.17,0.00024931,3]
[398432408,1765647051927,-693.45,0.00024931,3]
[398432409,1765647051936,-500.0,0.00024931,3]
[398432410,1765647051945,-500.0,0.00024931,3]
[398432411,1765647051954,-500.0,0.00024931,3]
[398432412,1765647051963,-500.0,0.00024931,3]
[398432413,1765647051971,-660.92,0.00024931,3]
[398432414,1765647051981,-1452.6,0.00024931,3]
[398432415,1765647051991,-1068.18,0.00024931,3]
[398432416,1765647052000,-1079.08,0.00024931,3]
[398432417,1765647052009,-500.0,0.00024931,3]
[398432418,1765647052019,-1118.09,0.00024931,3]
[398432419,1765647052027,-148.59770563,0.00024931,3]
[398432420,1765647052263,-351.40229437,0.00024931,3]
[398432421,1765647052274,-1188.85,0.00024931,3]
[398432422,1765647052284,-1226.86,0.00024931,3]
[398432423,1765647052294,-963.36990903,0.00024931,3]
[398432424,1765647063613,165.57,0.000134,2]
[398432425,1765647064014,165.57,0.000136,2]
[398432426,1765647064403,165.57,0.000137,2]
[398432427,1765647064845,165.57,0.000139,2]
[398432428,1765647068962,12913.48148495,0.00017,2]
[398432429,1765647096708,150.0,7.546e-05,2]
[398432430,1765647097130,150.0,7.905e-05,2]
[398432431,1765647097809,150.0,8.264e-05,2]
[398432433,1765647098289,150.0,8.624e-05,2]
[398432436,1765647123867,156.53,0.000134,2]
[398432437,1765647131871,156.48,0.00013417,2]
[398432438,1765647132617,-156.53,0.000135,2]
[398432439,1765647132640,-40.47000003,0.000135,2]
[398432440,1765647136781,-116.05999997,0.000135,2]
[398432441,1765647136803,-98.18539382,0.000135,2]
[398432442,1765647139303,-58.34460618,0.000135,2]
[398432443,1765647139325,-113.11836571,0.000136,2]
[398432444,1765647140716,-43.41163429,0.000136,2]
[398432445,1765647140743,-156.53,0.000136,2]
[398432446,1765647140765,-67.22152909,0.000136,2]
[398432447,1765647144145,-89.30847091,0.000136,2]
[398432448,1765647144167,-148.29125141,0.000137,2]
[398432449,1765647146813,-8.23874859,0.000137,2]
[398432450,1765647146835,-156.53,0.000137,2]
[398432451,1765647146858,-49.12947594,0.000137,2]
[398432452,1765647149777,-107.40052406,0.000137,2]
[398432453,1765647149800,-156.53,0.000138,2]
[398432454,1765647149822,-5.85413714,0.000138,2]
[398432455,1765647152913,-150.67586286,0.000138,2]
[398432456,1765647152936,-62.98895995,0.000139,2]
[398432457,1765647155103,-93.54104005,0.000139,2]
[398432458,1765647155128,-114.49876119,0.000139,2]
[398432459,1765647163464,150.0,7.225e-05,2]
[398432460,1765647163958,150.0,7.569e-05,2]
[398432461,1765647164688,150.0,7.913e-05,2]
[398432462,1765647164819,150.0,8.257e-05,2]
[398432463,1765647165447,150.0,8.601e-05,2]
[398432464,1765647165801,150.0,8.945e-05,2]
[398432465,1765647166292,150.0,9.289e-05,2]
[398432466,1765647166769,154.13,9.633e-05,2]
[398432467,1765647167239,173.39,9.977e-05,2]
[398432468,1765647186162,153.68,0.000134,2]
[398432469,1765647193912,-153.68,0.000135,2]
[398432470,1765647193934,-153.68,0.000136,2]
[398432471,1765647193956,-47.14224382,0.000136,2]
[398432472,1765647197430,-106.53775618,0.000136,2]
[398432473,1765647197453,-102.66694841,0.000137,2]
[398432474,1765647199468,-51.01305159,0.000137,2]
[398432475,1765647199490,-153.68,0.000138,2]
[398432476,1765647199517,-57.77912399,0.000139,2]
[398432477,1765647200922,-95.90087601,0.000139,2]
[398432478,1765647200945,-128.78770243,0.000139,2]
[398432479,1765647232045,150.0,7.363e-05,2]
[398432480,1765647232457,150.0,7.713e-05,2]
[398432481,1765647232901,150.0,8.064e-05,2]
[398432482,1765647233390,150.0,8.415e-05,2]
[398432483,1765647233870,150.0,8.765e-05,2]
[398432484,1765647234367,150.0,9.116e-05,2]
[398432485,1765647245786,172.29,0.000134,2]
[398432487,1765647303155,162.59,0.000134,2]
[398432488,1765647363633,158.81,0.000134,2]
[398432489,1765647373146,-158.81,0.000136,2]
[398432490,1765647373169,-77.06398746,0.000138,2]
[398432493,1765647425420,196.86,0.000134,2]
[398432496,1765647485492,177.83,0.000134,2]
[398432497,1765647492542,150.0,0.00010196,2]
[398432498,1765647492949,150.0,0.00010682,2]
[398432499,1765647493473,150.0,0.00011168,2]
[398432500,1765647493954,150.0,0.00011653,2]
[398432504,1765647543824,165.59,0.000134,2]
[398432505,1765647559315,150.0,8.864e-05,2]
[398432506,1765647559785,150.0,9.286e-05,2]
[398432510,1765647603610,161.29,0.000134,2]
[398432512,1765647624506,150.0,8.834e-05,2]
[398432513,1765647624999,150.0,9.255e-05,2]
[398432514,1765647625466,150.0,9.676e-05,2]
[398432516,1765647663722,157.38,0.000134,2]
[398432517,1765647690143,150.0,8.82e-05,2]
[398432518,1765647690601,150.0,9.24e-05,2]
[398432519,1765647690994,150.0,9.66e-05,2]
[398432520,1765647691495,150.0,0.0001008,2]
[398432521,1765647692121,150.0,0.000105,2]
[398432522,1765647723363,156.58,0.000134,2]
[398432523,1765647757165,150.0,7.163e-05,2]
[398432524,1765647757588,150.0,7.504e-05,2]
[398432525,1765647758090,150.0,7.846e-05,2]
[398432526,1765647758563,150.0,8.187e-05,2]
[398432527,1765647759033,150.0,8.528e-05,2]
[398432528,1765647759503,150.0,8.869e-05,2]
[398432529,1765647785639,155.06,0.000134,2]
[398432530,1765647825830,150.0,7.143e-05,2]
[398432531,1765647826400,150.0,7.483e-05,2]
[398432532,1765647826846,150.0,7.823e-05,2]
[398432533,1765647827336,150.0,8.163e-05,2]
[398432534,1765647828237,150.0,8.503e-05,2]
[398432535,1765647846004,155.08,0.000134,2]
[398432536,1765647892157,150.0,7.131e-05,2]
[398432537,1765647892549,150.0,7.471e-05,2]
[398432538,1765647902789,154.33,0.000134,2]
[398432540,1765647904174,-234.38121794,0.00013699,2]
[398432561,1765647956957,150.0,7.156e-05,2]
[398432562,1765647957358,150.0,7.497e-05,2]
[398432563,1765647957744,150.0,7.838e-05,2]
[398432564,1765647964160,154.46,0.000134,2]
[398432566,1765648021655,150.0,7.158e-05,2]
[398432567,1765648022050,150.0,7.499e-05,2]
[398432568,1765648022547,150.0,7.839e-05,2]
[398432569,1765648023027,150.0,8.18e-05,2]
[398432570,1765648024738,154.04,0.000134,2]
[398432571,1765648025084,-34.53765206,0.00013699,2]
[398432572,1765648025105,-154.04,0.00014,2]
[398432573,1765648025127,-48.19917341,0.00014738,2]
[398432574,1765648087398,150.0,7.16e-05,2]
[398432575,1765648087791,150.0,7.501e-05,2]
[398432576,1765648088217,150.0,7.841e-05,2]
[398432577,1765648088633,150.0,8.182e-05,2]
[398432578,1765648089065,150.0,8.523e-05,2]
[398432582,1765648143114,153.97,0.000134,2]
[398432584,1765648152888,150.0,9.696e-05,2]
[398432585,1765648153306,150.0,0.00010158,2]
[398432586,1765648153729,150.0,0.0001062,2]
[398432587,1765648154118,150.0,0.00011082,2]
[398432589,1765648202465,154.03,0.000134,2]
[398432598,1765648232233,-637.0,0.00015106,2]
[398432599,1765648232243,-150.0,0.00015106,2]
[398432600,1765648232252,-177.5238761,0.00016704,2]
[398432601,1765648232261,-188.82274317,0.00016706,2]
[398432602,1765648232270,-192.09117122,0.00017,2]
[398432603,1765648232282,-629.30076944,0.00017,2]
[398432604,1765648232299,-4082.68657439,0.00017,2]
[398432605,1765648232309,-177.0,0.00017106,2]
[398432606,1765648232318,-195.10434174,0.0001955,2]
[398432607,1765648232327,-4006.60908387,0.0002,8]
[398432801,1765648240843,-3e-08,0.0002,8]
[398432802,1765648240856,-1326.66510949,0.0002,8]
[398432803,1765648240867,-682.87130589,0.0002,8]
[398432816,1765648243508,-377.95093046,0.0002,8]
[398432818,1765648243520,-445.0,0.0002,8]
[398432820,1765648243530,-503.66427895,0.0002,8]
[398432822,1765648243542,-803.77226077,0.0002,8]
[398433001,1765648262969,153.73,0.000134,2]
[398433173,1765648325868,153.68,0.000134,2]
[398433174,1765648326166,153.68,0.000134,2]
[398433175,1765648333162,-153.68,0.000135,2]
[398433176,1765648333186,-153.68,0.000135,2]
[398433177,1765648333209,-153.68,0.000135,2]
[398433178,1765648333232,-153.68,0.000136,2]
[398433179,1765648333255,-105.55011647,0.000136,2]
[398433180,1765648337598,-48.12988353,0.000136,2]
[398433181,1765648337628,-153.68,0.000136,2]
[398433182,1765648337653,-67.60819133,0.000137,2]
[398433183,1765648340022,-86.07180867,0.000137,2]
[398433184,1765648340047,-93.92819133,0.000137,2]
[398433185,1765648345414,150.0,9.684e-05,2]
[398433186,1765648345809,150.0,0.00010145,2]
[398433187,1765648346219,150.0,0.00010606,2]
[398433188,1765648346626,150.0,0.00011067,2]
[398433189,1765648347012,150.0,0.00011528,2]
[398433190,1765648347400,150.0,0.0001199,2]
[398433191,1765648347820,150.0,0.00012451,2]
[398433192,1765648348215,150.0,0.00012912,2]
[398433193,1765648387860,159.71,0.000134,2]
[398433194,1765648393087,-159.71,0.000135,2]
[398433195,1765648393112,-145.27757259,0.000135,2]
[398433196,1765648394953,-14.43242741,0.000135,2]
[398433197,1765648394976,-159.71,0.000136,2]
[398433198,1765648394999,-36.94553383,0.000137,2]
[398433199,1765648398571,-122.76446617,0.000137,2]
[398433200,1765648398596,-83.88944409,0.000137,2]
[398433201,1765648412141,150.0,9.677e-05,2]
[398433202,1765648444801,155.69,0.000134,2]
[398433203,1765648453671,-154.95,0.000135,2]
[398433204,1765648455806,-0.74,0.000135,2]
[398433205,1765648455829,-155.69,0.000136,2]
[398433206,1765648455853,-140.35940148,0.000137,2]
[398433207,1765648505338,152.94,0.000134,2]
[398433208,1765648507691,152.92,0.00013417,2]
[398433210,1765648565704,153.17,0.000134,2]
[398433211,1765648568075,153.15,0.00013417,2]
[398433212,1765648625050,153.42,0.000134,2]
[398433213,1765648627074,153.4,0.00013417,2]
[398433214,1765648684736,153.64,0.000134,2]
[398433215,1765648686440,153.63,0.00013417,2]
[398433216,1765648743912,153.9,0.000134,2]
[398433217,1765648745134,153.89,0.00013417,2]
[398433218,1765648802420,154.07,0.000134,2]
[398433219,1765648862343,154.15,0.000134,2]
[398433220,1765648923252,154.07,0.000134,2]
[398433221,1765648982237,153.28,0.000134,2]
[398433223,1765649042279,158.66,0.000134,2]
[398433226,1765649102819,153.01,0.000134,2]
[398433228,1765649162405,157.72,0.000134,2]
[398433230,1765649194139,-313.72046547,0.00013725,2]
[398433231,1765649236086,-186.27953453,0.00013725,2]
[398433232,1765649236109,-615.0,0.00013725,2]
[398433233,1765649236129,-300.36116791,0.00013725,2]
[398433234,1765649283001,154.92,0.000134,2]
[398433237,1765649344046,154.92,0.000134,2]
[398433238,1765649402720,154.56,0.000134,2]
[398433239,1765649403980,154.55,0.00013417,2]
[398433268,1765649432396,-13.80888917,0.00013725,2]
[398433270,1765649432406,-615.0,0.00013725,2]
[398433272,1765649432415,-150.0,0.00014225,2]
[398433273,1765649432424,-122.5475332,0.00015841,2]
[398433275,1765649432435,-119.64769614,0.00015841,2]
[398433277,1765649432445,-177.0,0.00016225,2]
[398433279,1765649432455,-610.53551693,0.00017614,2]
[398433280,1765649432468,-445.58020797,0.00017614,2]
[398433281,1765649432477,-198.4977021,0.00017696,2]
[398433283,1765649432486,-204.0,0.00018225,2]
[398433285,1765649432495,-156.30998651,0.00018389,2]
[398433287,1765649432505,-3659.84176862,0.00019437,2]
[398433288,1765649432515,-196.3130334,0.00019482,2]
[398433289,1765649432524,-437.0,0.00019848,2]
[398433291,1765649432534,-1056.1157249,0.00019849,2]
[398433292,1765649432546,-386.64227909,0.0002,8]
[398433293,1765649432557,-417.16503418,0.0002,8]
[398433294,1765649432569,-277.65430233,0.0002,8]
[398433295,1765649432580,-1078.08916142,0.0002,8]
[398433299,1765649438481,-400.59033389,0.0002,8]
[398433300,1765649438492,-7637.31884597,0.0002,8]
[398433316,1765649440582,-263.98648147,0.0002,8]
[398433317,1765649440594,-1277.32845475,0.0002,8]
[398433318,1765649440637,-2141.61632335,0.0002,8]
[398433319,1765649440647,-4236.99731409,0.0002,8]
[398433320,1765649440656,-884.19220434,0.00020083,2]
[398433321,1765649440665,-300.0,0.00020184,2]
[398433322,1765649440674,-300.0,0.00020184,2]
[398433323,1765649440683,-500.0,0.00020184,2]
[398433324,1765649440693,-163.92511055,0.00020184,2]
[398433325,1765649440702,-500.0,0.00020184,2]
[398433326,1765649440711,-500.0,0.00020184,2]
[398433327,1765649440719,-500.0,0.00020184,2]
[398433328,1765649440728,-500.0,0.00020184,2]
[398433329,1765649440737,-500.0,0.00020184,2]
[398433330,1765649440746,-500.0,0.00020184,2]
[398433331,1765649440755,-500.0,0.00020184,2]
[398433332,1765649440764,-500.0,0.00020184,2]
[398433333,1765649440773,-529.13667793,0.00020184,2]
[398433334,1765649440782,-500.0,0.00020184,2]
[398433335,1765649440791,-500.0,0.00020184,2]
[398433336,1765649440800,-511.13779131,0.00020184,2]
[398433337,1765649440809,-500.0,0.00020184,2]
[398433338,1765649440818,-500.0,0.00020184,2]
[398433339,1765649440826,-500.0,0.00020184,2]
[398433340,1765649440835,-518.69652053,0.00020184,2]
[398433341,1765649440844,-1034.0,0.00020185,2]
[398433342,1765649440853,-268.91887,0.00020187,2]
[398433343,1765649440862,-231.0,0.00020225,2]
[398433344,1765649440871,-531.44389427,0.00020243,2]
[398433345,1765649440879,-160.0,0.00020253,2]
[398433346,1765649440888,-198.08824625,0.00020253,2]
[398433347,1765649440897,-179.09845773,0.00020256,2]
[398433348,1765649440906,-198.4977021,0.00020353,2]
[398433349,1765649440915,-150.0,0.00020713,10]
[398433350,1765649440924,-150.0,0.0002085,10]
[398433351,1765649440933,-200.0,0.00020987,10]
[398433352,1765649440942,-300.0,0.00020987,10]
[398433353,1765649440951,-300.0,0.00020987,10]
[398433354,1765649440960,-300.0,0.00020987,10]
[398433355,1765649440969,-300.0,0.00020987,10]
[398433356,1765649440978,-300.0,0.00020987,10]
[398433357,1765649440988,-300.0,0.00020987,10]
[398433358,1765649440997,-300.0,0.00020987,10]
[398433359,1765649441005,-300.0,0.00020987,10]
[398433360,1765649441014,-300.0,0.00020987,10]
[398433361,1765649441023,-300.0,0.00020987,10]
[398433362,1765649441032,-300.0,0.00020987,10]
[398433363,1765649441041,-300.0,0.00020987,10]
[398433364,1765649441051,-300.0,0.00020987,10]
[398433365,1765649441059,-300.0,0.00020987,10]
[398433366,1765649441068,-300.0,0.00020987,10]
[398433367,1765649441080,-27319.50448,0.00021,7]
[398433368,1765649441089,-897.27420555,0.0002114,2]
[398433369,1765649441098,-186.26091547,0.00021796,2]
[398433370,1765649441107,-280.44695057,0.00021817,2]
[398433371,1765649441116,-1253.13440703,0.00021873,2]
[398433372,1765649441125,-632.0,0.00021896,2]
[398433373,1765649441134,-1360.0,0.00021896,2]
[398433374,1765649441143,-2156.0,0.00021896,2]
[398433375,1765649441153,-415.0,0.00021896,2]
[398433376,1765649441163,-620.04261125,0.00021901,2]
[398433377,1765649441172,-253.137,0.00021907,2]
[398433378,1765649441181,-1118.39,0.00021907,3]
[398433379,1765649441190,-559.19,0.00021907,3]
[398433380,1765649441199,-279.6,0.00021907,3]
[398433381,1765649441208,-838.8,0.00021907,3]
[398433382,1765649441217,-3472.55,0.00021907,10]
[398433383,1765649441226,-2893.79,0.00021907,10]
[398433384,1765649441235,-546.46655445,0.00021907,10]
[398433387,1765649443573,-470.31115789,0.00021916,2]
[398433388,1765649443584,-90.81652116,0.00021916,2]
[398433389,1765649443594,-187.77127359,0.00021916,2]
[398433390,1765649443603,-500.0,0.00021916,2]
[398433391,1765649443612,-50.94845747,0.00021916,2]
[398433392,1765649443628,-419.18467264,0.00021916,2]
[398433393,1765649443682,-29.86686989,0.00021916,2]
[398433394,1765649443692,-350.0,0.00021916,2]
[398433395,1765649443700,-261.49128246,0.00021916,2]
[398433396,1765649443711,-238.50871754,0.00021916,2]
[398433397,1765649443721,-386.57016478,0.00021916,2]
[398433398,1765649443730,-624.47,0.00021916,2]
[398433399,1765649443738,-624.47,0.00021916,2]
[398433400,1765649443747,-624.47,0.00021916,2]
[398433401,1765649443756,-500.0,0.00021917,2]
[398433402,1765649443765,-500.0,0.00021917,2]
[398433403,1765649443774,-500.0,0.00021917,2]
[398433404,1765649443783,-1107.06829269,0.00021917,2]
[398433413,1765649446681,-773.96778952,0.00021917,2]
[398433414,1765649446691,-169.824791,0.00021917,2]
[398433415,1765649446700,-1217.558443,0.00021917,2]
[398433416,1765649446710,-500.0,0.00021917,2]
[398433417,1765649446718,-500.0,0.00021917,2]
[398433418,1765649446727,-500.0,0.00021917,2]
[398433419,1765649446736,-500.0,0.00021917,2]
[398433420,1765649446745,-1730.19,0.00021917,2]
[398433421,1765649446754,-500.0,0.00021917,2]
[398433422,1765649446763,-348.45897662,0.00021917,2]
[398433423,1765649446787,-151.54102338,0.00021917,2]
[398433424,1765649446796,-500.0,0.00021917,2]
[398433425,1765649446805,-46.1756274,0.00021917,2]
[398433428,1765649465242,500.0,0.00013418,2]
[398433430,1765649523010,152.19,0.000134,2]
[398433431,1765649524751,152.18,0.00013417,2]
[398433435,1765649702329,152.18,0.000134,2]
[398433437,1765649765494,152.19,0.000134,2]
[398433439,1765649768789,152.16,0.00013417,2]
[398433440,1765649770115,-152.19,0.000135,2]
[398433441,1765649770139,-40.38817597,0.000136,2]
[398433442,1765649825500,180.14,0.000134,2]
[398433444,1765649885213,168.96,0.000134,2]
[398433446,1765649944956,168.96,0.000134,2]
[398433448,1765650004840,168.96,0.000134,2]
[398433449,1765650005655,-378.42936084,0.000136,2]
[398433451,1765650064115,168.96,0.000134,2]
[398433457,1765650298756,-235.57063916,0.000136,2]
[398433458,1765650298779,-79.72440845,0.0001365,2]
[398433459,1765650302984,168.97,0.000134,2]
[398433463,1765650362185,165.29,0.000134,2]
[398433471,1765650444122,-70.27559155,0.0001365,2]
[398433472,1765650444144,-177.0,0.0001565,2]
[398433473,1765650444166,-137.05541224,0.0001765,2]
[398433474,1765650445090,-53.70458926,0.0001765,2]
[398433475,1765650445111,-999.0,0.00019853,2]
[398433476,1765650445132,-30.82590048,0.00020119,2]
[398433516,1765650491259,423.42096863,0.00010618,2]
[398433523,1765650525177,-242.026983,0.00013699,2]
[398433540,1765650631678,-730.96635047,0.00015,7]
[398433542,1765650631690,-2206.393608,0.00015,7]
[398433544,1765650631699,-150.0,0.000175,2]
[398433545,1765650631708,-150.0,0.000195,2]
[398433547,1765650631717,-220.0,0.0002,2]
[398433549,1765650631727,-262.86696302,0.00020119,2]
[398433550,1765650631736,-242.026983,0.00020187,2]
[398433552,1765650631745,-1000.0,0.00020227,2]
[398433554,1765650631754,-204.7669337,0.00020297,2]
[398433555,1765650631763,-695.00567781,0.00020306,2]
[398433557,1765650631773,-250.0,0.00020436,2]
[398433559,1765650631782,-300.0,0.00020899,2]
[398433560,1765650631792,-571.0,0.00020899,2]
[398433562,1765650631801,-500.0,0.000209,2]
[398433563,1765650631810,-562.66317257,0.000209,2]
[398433565,1765650631819,-169.90407533,0.000209,2]
[398433566,1765650631829,-500.0,0.000209,2]
[398433568,1765650631839,-457.49487228,0.000209,2]
[398433569,1765650631848,-7672.7981676,0.00020901,2]
[398433571,1765650631858,-3000.0,0.00021,2]
[398433572,1765650631867,-281.0,0.000213,2]
[398433573,1765650631876,-713.72584474,0.00021375,2]
[398433574,1765650631885,-198.4977022,0.00021399,2]
[398433575,1765650631895,-198.08824625,0.00021404,2]
[398433576,1765650631904,-186.13123096,0.00021816,2]
[398433577,1765650631913,-2112.2314501,0.00021837,2]
[398433578,1765650631923,-815.84924768,0.00021875,2]
[398433579,1765650631932,-652.39,0.00021907,3]
[398433580,1765650631942,-326.19,0.00021907,3]
[398433581,1765650631951,-278.1178578,0.00021916,2]
[398433582,1765650631961,-550.0,0.00021916,2]
[398433583,1765650631970,-500.0,0.00021916,2]
[398433584,1765650631980,-500.0,0.00021916,2]
[398433585,1765650631989,-500.0,0.00021916,2]
[398433586,1765650631999,-455.27301832,0.00021916,2]
[398433587,1765650632009,-202.51,0.00021916,2]
[398433588,1765650632018,-546.41,0.00021916,2]
[398433589,1765650632028,-546.41,0.00021916,2]
[398433590,1765650632037,-546.41,0.00021916,2]
[398433591,1765650632047,-546.41,0.00021916,2]
[398433592,1765650632056,-546.41,0.00021916,2]
[398433593,1765650632065,-546.41,0.00021916,2]
[398433594,1765650632076,-546.41,0.00021916,2]
[398433595,1765650632087,-546.41,0.00021916,2]
[398433596,1765650632096,-546.41,0.00021916,2]
[398433597,1765650632106,-546.41,0.00021916,2]
[398433598,1765650632115,-546.41,0.00021916,2]
[398433599,1765650632126,-546.41,0.00021916,2]
[398433600,1765650632136,-546.41,0.00021916,2]
[398433601,1765650632146,-546.41,0.00021916,2]
[398433602,1765650632156,-546.41,0.00021916,2]
[398433603,1765650632166,-546.41,0.00021916,2]
[398433604,1765650632175,-546.41,0.00021916,2]
[398433605,1765650632185,-150.0,0.00021917,2]
[398433606,1765650632195,-500.0,0.00021917,2]
[398433607,1765650632204,-479.87157739,0.00021917,2]
[398433608,1765650632214,-500.0,0.00021917,2]
[398433609,1765650632223,-913.168833,0.00021917,2]
[398433610,1765650632233,-500.0,0.00021917,2]
[398433611,1765650632242,-500.0,0.00021917,2]
[398433612,1765650632252,-500.0,0.00021917,2]
[398433613,1765650632261,-500.0,0.00021917,2]
[398433614,1765650632272,-500.0,0.00021917,2]
[398433615,1765650632281,-500.0,0.00021917,2]
[398433616,1765650632291,-632.6,0.00021917,2]